[Event "*** Titled Tuesday Blitz"]
[Site "Chess.com"]
[Date "2020.05.19"]
[Round "1"]
[White "czasnaszachy"]
[Black "PavlovDanila"]
[Result "0-1"]
[WhiteElo "2361"]
[BlackElo "2676"]
[TimeControl "180+1"]
[EndTime "12:05:12 PDT"]
[Termination "PavlovDanila won by resignation"]

1. d4 {[%clk 0:02:55.1]} 1... Nf6 {[%clk 0:02:58.7]} 2. c4 {[%clk 0:02:54.6]}
2... g6 {[%clk 0:02:58.6]} 3. Nc3 {[%clk 0:02:53.8]} 3... Bg7 {[%clk 0:02:58.9]}
4. e4 {[%clk 0:02:53.6]} 4... d6 {[%clk 0:02:59.5]} 5. f3 {[%clk 0:02:53.6]}
5... O-O {[%clk 0:02:59.7]} 6. Bg5 {[%clk 0:02:53.4]} 6... h6 {[%clk 0:02:58.6]}
7. Be3 {[%clk 0:02:52.6]} 7... e5 {[%clk 0:02:58.4]} 8. d5 {[%clk 0:02:49.7]}
8... Nh5 {[%clk 0:02:58]} 9. Qd2 {[%clk 0:02:48.1]} 9... Qh4+ {[%clk 0:02:57.7]}
10. Bf2 {[%clk 0:02:46.1]} 10... Qf4 {[%clk 0:02:57]} 11. Be3 {[%clk 0:02:38]}
11... Qh4+ {[%clk 0:02:56.7]} 12. Bf2 {[%clk 0:02:38]} 12... Qe7 {[%clk
0:02:56.5]} 13. Nge2 {[%clk 0:02:35.6]} 13... f5 {[%clk 0:02:56.1]} 14. exf5
{[%clk 0:02:29.3]} 14... gxf5 {[%clk 0:02:55.2]} 15. O-O-O {[%clk 0:02:29.1]}
15... a5 {[%clk 0:02:53.1]} 16. g3 {[%clk 0:02:03.6]} 16... Na6 {[%clk
0:02:48.3]} 17. Be3 {[%clk 0:02:00.8]} 17... Kh7 {[%clk 0:02:32.5]} 18. f4
{[%clk 0:01:59.2]} 18... e4 {[%clk 0:02:30.5]} 19. Nd4 {[%clk 0:01:56.2]} 19...
Nf6 {[%clk 0:02:24]} 20. Be2 {[%clk 0:01:54.4]} 20... Bd7 {[%clk 0:02:18.2]} 21.
h3 {[%clk 0:01:53.7]} 21... c5 {[%clk 0:02:14.8]} 22. Ndb5 {[%clk 0:01:48.8]}
22... Rae8 {[%clk 0:01:47.1]} 23. Rdg1 {[%clk 0:01:47.5]} 23... Nb4 {[%clk
0:01:32.2]} 24. g4 {[%clk 0:01:45.7]} 24... Nd3+ {[%clk 0:01:32]} 25. Bxd3
{[%clk 0:01:38.4]} 25... exd3 {[%clk 0:01:31.7]} 26. Re1 {[%clk 0:01:22.6]}
26... Bxb5 {[%clk 0:01:24.3]} 27. cxb5 {[%clk 0:00:53.3]} 27... Ne4 {[%clk
0:01:17.9]} 28. gxf5 {[%clk 0:00:49.2]} 28... Nxd2 {[%clk 0:01:16.7]} 0-1

[Event "*** Titled Tuesday Blitz"]
[Site "Chess.com"]
[Date "2020.05.19"]
[Round "1"]
[White "Matveev_Vladimir"]
[Black "MikeSailer"]
[Result "1-0"]
[WhiteElo "2493"]
[BlackElo "2069"]
[TimeControl "180+1"]
[EndTime "12:05:18 PDT"]
[Termination "Matveev_Vladimir won by checkmate"]

1. d4 {[%clk 0:03:00.9]} 1... d5 {[%clk 0:02:59.9]} 2. c4 {[%clk 0:03:01.4]}
2... Bf5 {[%clk 0:03:00]} 3. Nc3 {[%clk 0:02:59.3]} 3... e6 {[%clk 0:03:00.2]}
4. a3 {[%clk 0:02:59.5]} 4... Nc6 {[%clk 0:03:00.5]} 5. e3 {[%clk 0:02:59.6]}
5... Nf6 {[%clk 0:03:00.4]} 6. Nf3 {[%clk 0:02:59.8]} 6... Be7 {[%clk
0:03:00.4]} 7. b4 {[%clk 0:03:00.1]} 7... a6 {[%clk 0:03:00.1]} 8. Bb2 {[%clk
0:02:59.8]} 8... O-O {[%clk 0:03:00.4]} 9. h3 {[%clk 0:02:57.4]} 9... Ne4 {[%clk
0:02:59.2]} 10. Be2 {[%clk 0:02:53]} 10... dxc4 {[%clk 0:02:48.4]} 11. Bxc4
{[%clk 0:02:52.6]} 11... Nxc3 {[%clk 0:02:44.6]} 12. Bxc3 {[%clk 0:02:51.8]}
12... Bd6 {[%clk 0:02:43.6]} 13. O-O {[%clk 0:02:50.7]} 13... Ne7 {[%clk
0:02:42.9]} 14. Re1 {[%clk 0:02:40.5]} 14... Nd5 {[%clk 0:02:42.7]} 15. Bb2
{[%clk 0:02:36.6]} 15... Nf6 {[%clk 0:02:39.1]} 16. Nd2 {[%clk 0:02:29.9]} 16...
Ne4 {[%clk 0:02:37.4]} 17. Nb3 {[%clk 0:02:23.6]} 17... Qh4 {[%clk 0:02:29.5]}
18. Qe2 {[%clk 0:02:05.1]} 18... Ng5 {[%clk 0:01:38.4]} 19. f4 {[%clk
0:01:58.9]} 19... Ne4 {[%clk 0:01:31.3]} 20. Nc5 {[%clk 0:01:58.8]} 20... Bxc5
{[%clk 0:01:28.9]} 21. dxc5 {[%clk 0:01:56.8]} 21... Rad8 {[%clk 0:01:25.5]} 22.
Rad1 {[%clk 0:01:51]} 22... Rxd1 {[%clk 0:01:08.3]} 23. Rxd1 {[%clk 0:01:49.3]}
23... Bxh3 {[%clk 0:00:57.7]} 24. gxh3 {[%clk 0:01:40]} 24... Qg3+ {[%clk
0:00:55]} 25. Qg2 {[%clk 0:01:32.9]} 25... Qxe3+ {[%clk 0:00:55.2]} 26. Kh1
{[%clk 0:01:20.3]} 26... Nf2+ {[%clk 0:00:53.6]} 27. Kh2 {[%clk 0:01:19.7]}
27... Qxf4+ {[%clk 0:00:50.3]} 28. Kg1 {[%clk 0:01:19.2]} 28... Nxd1 {[%clk
0:00:47]} 29. Qxg7# {[%clk 0:01:18.7]} 1-0

[Event "*** Titled Tuesday Blitz"]
[Site "Chess.com"]
[Date "2020.05.19"]
[Round "1"]
[White "Gennady_Kozlov"]
[Black "silverback96"]
[Result "0-1"]
[WhiteElo "2589"]
[BlackElo "2327"]
[TimeControl "180+1"]
[EndTime "12:05:20 PDT"]
[Termination "silverback96 won by resignation"]

1. d4 {[%clk 0:03:00.9]} 1... Nf6 {[%clk 0:02:59.6]} 2. c4 {[%clk 0:03:00.4]}
2... c5 {[%clk 0:03:00.2]} 3. d5 {[%clk 0:02:59.9]} 3... e6 {[%clk 0:03:00.8]}
4. Nf3 {[%clk 0:02:58.8]} 4... exd5 {[%clk 0:03:01.7]} 5. cxd5 {[%clk
0:02:58.7]} 5... d6 {[%clk 0:03:02.6]} 6. Nc3 {[%clk 0:02:58.2]} 6... g6 {[%clk
0:03:03.2]} 7. Nd2 {[%clk 0:02:58]} 7... Bg7 {[%clk 0:03:03.6]} 8. Nc4 {[%clk
0:02:58.6]} 8... O-O {[%clk 0:03:03.5]} 9. Bf4 {[%clk 0:02:57.7]} 9... Na6
{[%clk 0:03:03.2]} 10. Bxd6 {[%clk 0:02:46.3]} 10... Re8 {[%clk 0:03:03.3]} 11.
Bg3 {[%clk 0:02:46.2]} 11... Ne4 {[%clk 0:03:02.5]} 12. Nxe4 {[%clk 0:02:44.8]}
12... Rxe4 {[%clk 0:03:03.4]} 13. e3 {[%clk 0:02:44.9]} 13... b5 {[%clk
0:03:02]} 14. Nd6 {[%clk 0:02:42.3]} 14... Rb4 {[%clk 0:02:57.1]} 15. Nxc8
{[%clk 0:02:40.5]} 15... Rxc8 {[%clk 0:02:50.3]} 16. Rb1 {[%clk 0:02:31.8]}
16... Qa5 {[%clk 0:02:27.7]} 17. Bd3 {[%clk 0:02:31.5]} 17... c4 {[%clk
0:02:13.4]} 18. Bc2 {[%clk 0:02:26.8]} 18... Rxb2+ {[%clk 0:02:13.9]} 19. Kf1
{[%clk 0:02:24.4]} 19... Qxa2 {[%clk 0:02:13.7]} 20. Rxb2 {[%clk 0:02:24.2]}
20... Qxb2 {[%clk 0:02:14]} 21. d6 {[%clk 0:02:24.4]} 21... b4 {[%clk
0:02:09.4]} 22. Qb1 {[%clk 0:02:16.2]} 22... b3 {[%clk 0:01:44.2]} 23. Qxb2
{[%clk 0:02:07.4]} 23... Bxb2 {[%clk 0:01:45.1]} 24. Bxb3 {[%clk 0:02:07.7]}
24... cxb3 {[%clk 0:01:44.6]} 25. Ke2 {[%clk 0:02:08.6]} 25... Bf6 {[%clk
0:01:39]} 26. Rb1 {[%clk 0:01:58.2]} 26... b2 {[%clk 0:01:38.5]} 27. Kd2 {[%clk
0:01:58.7]} 27... Nc5 {[%clk 0:01:23.8]} 28. Kc2 {[%clk 0:01:45.2]} 28... Ne4+
{[%clk 0:01:23.2]} 29. Kb3 {[%clk 0:01:44.1]} 29... Nxg3 {[%clk 0:01:23.6]} 30.
hxg3 {[%clk 0:01:43]} 30... Rc1 {[%clk 0:01:21]} 31. Ka2 {[%clk 0:01:42.9]}
31... Rxb1 {[%clk 0:01:20]} 32. Kxb1 {[%clk 0:01:43.8]} 32... Kf8 {[%clk
0:01:20.1]} 33. f4 {[%clk 0:01:41.8]} 33... Ke8 {[%clk 0:01:20.4]} 34. e4 {[%clk
0:01:41.9]} 34... Bd4 {[%clk 0:01:21]} 35. e5 {[%clk 0:01:41.9]} 35... h5 {[%clk
0:01:19.7]} 36. Kc2 {[%clk 0:01:40.8]} 36... Kd7 {[%clk 0:01:19.9]} 37. Kb1
{[%clk 0:01:40.4]} 37... a5 {[%clk 0:01:20.4]} 38. Ka2 {[%clk 0:01:40.3]} 38...
a4 {[%clk 0:01:21]} 39. Kb1 {[%clk 0:01:40.3]} 39... a3 {[%clk 0:01:21.4]} 40.
Ka2 {[%clk 0:01:40.4]} 40... Bf2 {[%clk 0:01:21]} 41. g4 {[%clk 0:01:38.5]}
41... hxg4 {[%clk 0:01:20.7]} 42. Kb1 {[%clk 0:01:37.1]} 42... Bg3 {[%clk
0:01:20.4]} 43. Ka2 {[%clk 0:01:37.7]} 43... Bxf4 {[%clk 0:01:19.9]} 44. Kxa3
{[%clk 0:01:38.6]} 0-1

[Event "*** Titled Tuesday Blitz"]
[Site "Chess.com"]
[Date "2020.05.19"]
[Round "1"]
[White "Tapuah"]
[Black "Savva09022009"]
[Result "1/2-1/2"]
[WhiteElo "2782"]
[BlackElo "2420"]
[TimeControl "180+1"]
[EndTime "12:05:22 PDT"]
[Termination "Game drawn by agreement"]

1. e4 {[%clk 0:03:00.9]} 1... c5 {[%clk 0:02:54.5]} 2. Nf3 {[%clk 0:02:59.5]}
2... Nc6 {[%clk 0:02:54.6]} 3. Bb5 {[%clk 0:02:58.5]} 3... Nf6 {[%clk
0:02:53.5]} 4. Bxc6 {[%clk 0:02:54.7]} 4... dxc6 {[%clk 0:02:52.9]} 5. d3 {[%clk
0:02:54.8]} 5... Bg4 {[%clk 0:02:51.6]} 6. Nbd2 {[%clk 0:02:53.6]} 6... e6
{[%clk 0:02:49.9]} 7. h3 {[%clk 0:02:53.1]} 7... Bh5 {[%clk 0:02:49.7]} 8. g4
{[%clk 0:02:45.2]} 8... Bg6 {[%clk 0:02:39.3]} 9. Ne5 {[%clk 0:02:44.6]} 9...
Bd6 {[%clk 0:02:37.9]} 10. Nxg6 {[%clk 0:02:42.5]} 10... hxg6 {[%clk 0:02:38.8]}
11. Qe2 {[%clk 0:02:42.2]} 11... e5 {[%clk 0:02:31.7]} 12. Nc4 {[%clk
0:02:38.9]} 12... Qe7 {[%clk 0:02:26.8]} 13. Be3 {[%clk 0:02:34]} 13... Bc7
{[%clk 0:02:22.7]} 14. O-O-O {[%clk 0:02:28.2]} 14... Nd7 {[%clk 0:02:20.2]} 15.
Kb1 {[%clk 0:01:55.3]} 15... g5 {[%clk 0:02:16.8]} 16. Bd2 {[%clk 0:01:48.1]}
16... O-O-O {[%clk 0:02:12.1]} 17. Ne3 {[%clk 0:01:46.2]} 17... g6 {[%clk
0:02:07.6]} 18. Bc3 {[%clk 0:01:45.5]} 18... Nf8 {[%clk 0:02:05.7]} 19. Nc4
{[%clk 0:01:41.8]} 19... f6 {[%clk 0:02:02.4]} 20. a4 {[%clk 0:01:37.3]} 20...
Ne6 {[%clk 0:01:55.2]} 21. Qe3 {[%clk 0:01:35.3]} 21... Nf4 {[%clk 0:01:51.2]}
22. Qf3 {[%clk 0:01:32.4]} 22... Rh7 {[%clk 0:01:42]} 23. Bd2 {[%clk 0:01:31.7]}
23... Ne6 {[%clk 0:01:33.6]} 24. c3 {[%clk 0:01:29.4]} 24... Rhh8 {[%clk
0:01:21.8]} 25. Be3 {[%clk 0:01:28.9]} 25... Rd7 {[%clk 0:01:21.1]} 26. Rd2
{[%clk 0:01:21.4]} 26... Rhd8 {[%clk 0:01:18.9]} 27. Rhd1 {[%clk 0:01:21.2]}
27... Qg7 {[%clk 0:01:13]} 28. a5 {[%clk 0:01:15.5]} 28... Kb8 {[%clk
0:01:11.5]} 29. b3 {[%clk 0:01:14.1]} 29... Bd6 {[%clk 0:01:11.4]} 30. Ra2
{[%clk 0:01:12.5]} 30... Be7 {[%clk 0:01:07.8]} 31. Rad2 {[%clk 0:01:11]} 31...
Qh7 {[%clk 0:01:04.8]} 32. Kb2 {[%clk 0:01:08.8]} 32... Qg7 {[%clk 0:00:59.1]}
1/2-1/2

[Event "*** Titled Tuesday Blitz"]
[Site "Chess.com"]
[Date "2020.05.19"]
[Round "1"]
[White "EfM13"]
[Black "Mizner"]
[Result "0-1"]
[WhiteElo "2238"]
[BlackElo "2550"]
[TimeControl "180+1"]
[EndTime "12:05:22 PDT"]
[Termination "Mizner won by resignation"]

1. e4 {[%clk 0:03:00.9]} 1... e6 {[%clk 0:02:31.1]} 2. d4 {[%clk 0:03:00.6]}
2... d5 {[%clk 0:02:32]} 3. Nd2 {[%clk 0:03:00.2]} 3... c5 {[%clk 0:02:19]} 4.
Ngf3 {[%clk 0:02:58.8]} 4... cxd4 {[%clk 0:02:15]} 5. Nxd4 {[%clk 0:02:58.2]}
5... Nc6 {[%clk 0:02:14.4]} 6. Bb5 {[%clk 0:02:54.3]} 6... Bd7 {[%clk
0:02:14.9]} 7. Nxc6 {[%clk 0:02:53.4]} 7... bxc6 {[%clk 0:02:15.8]} 8. Bd3
{[%clk 0:02:53.4]} 8... Qc7 {[%clk 0:02:12.2]} 9. c4 {[%clk 0:02:41.9]} 9... d4
{[%clk 0:02:07.8]} 10. O-O {[%clk 0:02:39.2]} 10... Bd6 {[%clk 0:02:03.2]} 11.
Nf3 {[%clk 0:02:37.6]} 11... e5 {[%clk 0:02:00.5]} 12. Bg5 {[%clk 0:02:32.5]}
12... Ne7 {[%clk 0:01:57.8]} 13. Rc1 {[%clk 0:02:30.8]} 13... c5 {[%clk
0:01:57.3]} 14. a3 {[%clk 0:02:28.5]} 14... a5 {[%clk 0:01:56.9]} 15. b4 {[%clk
0:02:23.4]} 15... axb4 {[%clk 0:01:48.4]} 16. axb4 {[%clk 0:02:23.2]} 16... cxb4
{[%clk 0:01:48.1]} 17. c5 {[%clk 0:02:22.7]} 17... Bxc5 {[%clk 0:01:48.4]} 18.
Bxe7 {[%clk 0:02:22.2]} 18... Kxe7 {[%clk 0:01:48]} 19. Qc2 {[%clk 0:02:15]}
19... Rhc8 {[%clk 0:01:44.6]} 20. Qc4 {[%clk 0:02:11.8]} 20... Be6 {[%clk
0:01:40.4]} 21. Qb5 {[%clk 0:02:04.8]} 21... Ra5 {[%clk 0:01:29]} 22. Rxc5
{[%clk 0:01:56.4]} 22... Qxc5 {[%clk 0:01:27.6]} 23. Qb7+ {[%clk 0:01:49.9]}
23... Rc7 {[%clk 0:01:26.9]} 24. Qb8 {[%clk 0:01:49.5]} 24... Bc8 {[%clk
0:01:08.5]} 25. Rb1 {[%clk 0:01:33.3]} 25... Rb7 {[%clk 0:01:05.3]} 26. Qxe5+
{[%clk 0:01:09.4]} 26... Qxe5 {[%clk 0:01:04.4]} 27. Nxe5 {[%clk 0:01:10.2]}
27... Rxe5 {[%clk 0:01:04.6]} 28. f4 {[%clk 0:01:09.9]} 28... Rc5 {[%clk
0:01:03.5]} 29. Ba6 {[%clk 0:01:08.2]} 29... Rbc7 {[%clk 0:01:01.1]} 30. Rxb4
{[%clk 0:01:07.1]} 30... Bxa6 {[%clk 0:00:57.4]} 31. Rxd4 {[%clk 0:01:07.2]}
31... Rc4 {[%clk 0:00:56.2]} 32. Rxc4 {[%clk 0:01:05.3]} 32... Rxc4 {[%clk
0:00:55.8]} 0-1

[Event "*** Titled Tuesday Blitz"]
[Site "Chess.com"]
[Date "2020.05.19"]
[Round "1"]
[White "Vandros57"]
[Black "marcodobrikov"]
[Result "0-1"]
[WhiteElo "1930"]
[BlackElo "2474"]
[TimeControl "180+1"]
[EndTime "12:05:26 PDT"]
[Termination "marcodobrikov won by resignation"]

1. d4 {[%clk 0:02:57.2]} 1... Nf6 {[%clk 0:02:59.6]} 2. c4 {[%clk 0:02:55.6]}
2... g6 {[%clk 0:02:59.1]} 3. Nc3 {[%clk 0:02:54.8]} 3... d5 {[%clk 0:02:59.1]}
4. cxd5 {[%clk 0:02:53.7]} 4... Nxd5 {[%clk 0:03:00]} 5. Nf3 {[%clk 0:02:52.3]}
5... Bg7 {[%clk 0:02:59.5]} 6. Bd2 {[%clk 0:02:50.8]} 6... Nxc3 {[%clk
0:02:56.8]} 7. Bxc3 {[%clk 0:02:49.7]} 7... c5 {[%clk 0:02:56.8]} 8. e3 {[%clk
0:02:47.3]} 8... O-O {[%clk 0:02:54.3]} 9. Be2 {[%clk 0:02:45.6]} 9... cxd4
{[%clk 0:02:49.6]} 10. Bxd4 {[%clk 0:02:44.4]} 10... Nc6 {[%clk 0:02:48.5]} 11.
Bxg7 {[%clk 0:02:42.7]} 11... Kxg7 {[%clk 0:02:49.4]} 12. Qxd8 {[%clk
0:02:40.9]} 12... Rxd8 {[%clk 0:02:50.3]} 13. O-O {[%clk 0:02:39.4]} 13... Be6
{[%clk 0:02:49.6]} 14. b3 {[%clk 0:02:34.3]} 14... Rac8 {[%clk 0:02:49]} 15.
Rfd1 {[%clk 0:02:31]} 15... Nb4 {[%clk 0:02:42.2]} 16. Nd4 {[%clk 0:02:19.5]}
16... Bd5 {[%clk 0:02:41.9]} 17. f3 {[%clk 0:02:13.5]} 17... e5 {[%clk
0:02:40.1]} 18. Nb5 {[%clk 0:02:11.1]} 18... a6 {[%clk 0:02:35.1]} 19. Na3
{[%clk 0:02:06.4]} 19... Be6 {[%clk 0:02:28.9]} 20. Kf2 {[%clk 0:02:01.9]} 20...
Rxd1 {[%clk 0:02:13.6]} 21. Rxd1 {[%clk 0:01:36.7]} 21... Nxa2 {[%clk
0:02:12.6]} 22. Bc4 {[%clk 0:01:28.4]} 22... Nc3 {[%clk 0:02:02.2]} 23. Rd6
{[%clk 0:01:23.6]} 23... Kf6 {[%clk 0:01:28]} 24. Bxe6 {[%clk 0:01:19]} 24...
fxe6 {[%clk 0:01:27.4]} 25. Rb6 {[%clk 0:01:16.5]} 25... Rc7 {[%clk 0:01:24.7]}
26. Nc4 {[%clk 0:01:14.8]} 26... Nd5 {[%clk 0:01:23.7]} 27. Rd6 {[%clk
0:01:11.9]} 27... Ke7 {[%clk 0:01:21.7]} 28. e4 {[%clk 0:01:00]} 28... Rxc4
{[%clk 0:01:21.3]} 29. bxc4 {[%clk 0:00:50.9]} 29... Kxd6 {[%clk 0:01:20.9]} 30.
cxd5 {[%clk 0:00:50]} 30... exd5 {[%clk 0:01:20.6]} 0-1

[Event "*** Titled Tuesday Blitz"]
[Site "Chess.com"]
[Date "2020.05.19"]
[Round "1"]
[White "PlayChessSimple"]
[Black "szefru"]
[Result "1-0"]
[WhiteElo "2507"]
[BlackElo "2142"]
[TimeControl "180+1"]
[EndTime "12:05:27 PDT"]
[Termination "PlayChessSimple won by resignation"]

1. e4 {[%clk 0:03:00.7]} 1... Nf6 {[%clk 0:02:58.9]} 2. Nc3 {[%clk 0:02:59]}
2... d5 {[%clk 0:02:58.3]} 3. e5 {[%clk 0:02:59.2]} 3... Nfd7 {[%clk 0:02:57.9]}
4. f4 {[%clk 0:02:54]} 4... e6 {[%clk 0:02:51.3]} 5. Nf3 {[%clk 0:02:53.5]} 5...
c5 {[%clk 0:02:45.2]} 6. g3 {[%clk 0:02:53.3]} 6... Nc6 {[%clk 0:02:41.3]} 7.
Bg2 {[%clk 0:02:52.7]} 7... Be7 {[%clk 0:02:33.6]} 8. O-O {[%clk 0:02:52.5]}
8... O-O {[%clk 0:02:33.1]} 9. d4 {[%clk 0:02:52.5]} 9... cxd4 {[%clk
0:02:32.6]} 10. Ne2 {[%clk 0:02:51.9]} 10... Bc5 {[%clk 0:02:27.4]} 11. Nexd4
{[%clk 0:02:48.5]} 11... Nxd4 {[%clk 0:02:18.8]} 12. Nxd4 {[%clk 0:02:47.8]}
12... Qb6 {[%clk 0:02:18.9]} 13. c3 {[%clk 0:02:46.1]} 13... Bxd4+ {[%clk
0:01:56.2]} 14. cxd4 {[%clk 0:02:43.4]} 14... Nb8 {[%clk 0:01:55.9]} 15. Rf2
{[%clk 0:02:41.4]} 15... Nc6 {[%clk 0:01:52.2]} 16. Be3 {[%clk 0:02:41.4]} 16...
Bd7 {[%clk 0:01:52]} 17. Qd2 {[%clk 0:02:27.9]} 17... Na5 {[%clk 0:01:49.6]} 18.
b3 {[%clk 0:02:27.5]} 18... Rac8 {[%clk 0:01:48.7]} 19. g4 {[%clk 0:02:14]}
19... Rc7 {[%clk 0:01:44.4]} 20. f5 {[%clk 0:02:11.6]} 20... Rfc8 {[%clk
0:01:43.4]} 21. Raf1 {[%clk 0:01:58.6]} 21... Rc2 {[%clk 0:01:24.7]} 22. Qd1
{[%clk 0:01:53.7]} 22... R2c3 {[%clk 0:01:12.9]} 23. Qf3 {[%clk 0:01:49.5]}
23... Bb5 {[%clk 0:01:05.7]} 24. fxe6 {[%clk 0:01:42.4]} 24... Qxe6 {[%clk
0:01:02.2]} 25. Re1 {[%clk 0:01:24.6]} 25... Nc6 {[%clk 0:00:54.2]} 26. Qxd5
{[%clk 0:01:21]} 26... Rd8 {[%clk 0:00:32.9]} 27. Qxb5 {[%clk 0:01:18.4]} 1-0

[Event "*** Titled Tuesday Blitz"]
[Site "Chess.com"]
[Date "2020.05.19"]
[Round "1"]
[White "Parkas"]
[Black "Roman_Ovetchkin"]
[Result "0-1"]
[WhiteElo "2302"]
[BlackElo "2605"]
[TimeControl "180+1"]
[EndTime "12:05:31 PDT"]
[Termination "Roman_Ovetchkin won by resignation"]

1. e4 {[%clk 0:02:59.3]} 1... c6 {[%clk 0:02:59.4]} 2. d4 {[%clk 0:02:59]} 2...
d5 {[%clk 0:02:59.2]} 3. f3 {[%clk 0:02:59.5]} 3... Qb6 {[%clk 0:02:56.3]} 4.
Ne2 {[%clk 0:02:49.4]} 4... dxe4 {[%clk 0:02:49.3]} 5. fxe4 {[%clk 0:02:49.3]}
5... e5 {[%clk 0:02:49.3]} 6. d5 {[%clk 0:02:37]} 6... Bg4 {[%clk 0:02:34.4]} 7.
h3 {[%clk 0:02:18.4]} 7... Bc5 {[%clk 0:02:33.5]} 8. Qd3 {[%clk 0:02:15]} 8...
Bf2+ {[%clk 0:02:30.5]} 9. Kd1 {[%clk 0:02:15.1]} 9... Bh5 {[%clk 0:02:25.9]}
10. Nd2 {[%clk 0:02:05.5]} 10... cxd5 {[%clk 0:01:57.1]} 11. exd5 {[%clk
0:02:05.4]} 11... Nf6 {[%clk 0:01:56.5]} 12. Nc4 {[%clk 0:02:02.3]} 12... Qc5
{[%clk 0:01:48.5]} 13. Be3 {[%clk 0:01:26.9]} 13... Bxe3 {[%clk 0:01:46.4]} 14.
Nxe3 {[%clk 0:01:21.3]} 14... Nbd7 {[%clk 0:01:24.9]} 15. c4 {[%clk 0:00:57.7]}
15... b5 {[%clk 0:01:22.3]} 16. Rc1 {[%clk 0:00:51.5]} 16... Bg6 {[%clk
0:01:12.1]} 17. cxb5 {[%clk 0:00:16.9]} 17... Bxd3 {[%clk 0:01:03.2]} 18. Rxc5
{[%clk 0:00:16.7]} 18... Nxc5 {[%clk 0:01:04.1]} 0-1

[Event "*** Titled Tuesday Blitz"]
[Site "Chess.com"]
[Date "2020.05.19"]
[Round "1"]
[White "Megagigahiper3345"]
[Black "Jadeit90"]
[Result "1-0"]
[WhiteElo "2629"]
[BlackElo "2330"]
[TimeControl "180+1"]
[EndTime "12:05:33 PDT"]
[Termination "Megagigahiper3345 won by checkmate"]

1. d4 {[%clk 0:03:00.2]} 1... Nf6 {[%clk 0:02:57.7]} 2. c4 {[%clk 0:02:59.3]}
2... c5 {[%clk 0:02:58]} 3. d5 {[%clk 0:02:59.2]} 3... d6 {[%clk 0:02:54.4]} 4.
Nc3 {[%clk 0:02:59]} 4... g6 {[%clk 0:02:54.9]} 5. e4 {[%clk 0:02:58.4]} 5...
Bg7 {[%clk 0:02:55.4]} 6. Be2 {[%clk 0:02:57]} 6... O-O {[%clk 0:02:55.7]} 7.
Nf3 {[%clk 0:02:55.6]} 7... e6 {[%clk 0:02:56.1]} 8. O-O {[%clk 0:02:55.1]} 8...
exd5 {[%clk 0:02:56.4]} 9. exd5 {[%clk 0:02:54.9]} 9... Na6 {[%clk 0:02:56.8]}
10. Bg5 {[%clk 0:02:53]} 10... h6 {[%clk 0:02:55.3]} 11. Bh4 {[%clk 0:02:49.6]}
11... Nc7 {[%clk 0:02:55.3]} 12. Qd2 {[%clk 0:02:49.2]} 12... Rb8 {[%clk
0:02:54.4]} 13. a4 {[%clk 0:02:48.3]} 13... a6 {[%clk 0:02:54.1]} 14. Rfe1
{[%clk 0:02:46.1]} 14... b5 {[%clk 0:02:53.5]} 15. axb5 {[%clk 0:02:45.6]} 15...
axb5 {[%clk 0:02:54.4]} 16. cxb5 {[%clk 0:02:45.3]} 16... Bd7 {[%clk 0:02:53.9]}
17. Ra7 {[%clk 0:02:40.5]} 17... Nxb5 {[%clk 0:02:45.8]} 18. Bxb5 {[%clk
0:01:53.7]} 18... Bxb5 {[%clk 0:02:44.7]} 19. Qf4 {[%clk 0:01:41.6]} 19... g5
{[%clk 0:02:36.6]} 20. Nxg5 {[%clk 0:01:38.8]} 20... hxg5 {[%clk 0:02:35.1]} 21.
Bxg5 {[%clk 0:01:39.7]} 21... Re8 {[%clk 0:02:19.7]} 22. Re3 {[%clk 0:01:06.7]}
22... Rxe3 {[%clk 0:02:17.9]} 23. fxe3 {[%clk 0:01:06.1]} 23... Bd3 {[%clk
0:02:07.8]} 24. e4 {[%clk 0:00:48.9]} 24... Rxb2 {[%clk 0:01:52.4]} 25. Qf3
{[%clk 0:00:34.4]} 25... c4 {[%clk 0:01:45.2]} 26. h4 {[%clk 0:00:25.4]} 26...
Qb6+ {[%clk 0:01:25.6]} 27. Be3 {[%clk 0:00:23.4]} 27... Qb4 {[%clk 0:01:23.5]}
28. Ra8+ {[%clk 0:00:23.3]} 28... Kh7 {[%clk 0:01:22.4]} 29. Qf5# {[%clk
0:00:22.9]} 1-0

[Event "*** Titled Tuesday Blitz"]
[Site "Chess.com"]
[Date "2020.05.19"]
[Round "1"]
[White "harkerchess"]
[Black "lolo9292"]
[Result "0-1"]
[WhiteElo "2048"]
[BlackElo "2490"]
[TimeControl "180+1"]
[EndTime "12:05:37 PDT"]
[Termination "lolo9292 won on time"]

1. d4 {[%clk 0:03:00.9]} 1... Nf6 {[%clk 0:02:59.7]} 2. Bg5 {[%clk 0:02:56.1]}
2... b6 {[%clk 0:02:57.5]} 3. e3 {[%clk 0:02:50.9]} 3... Bb7 {[%clk 0:02:57.2]}
4. Nf3 {[%clk 0:02:49.7]} 4... e6 {[%clk 0:02:56.8]} 5. Bd3 {[%clk 0:02:48.8]}
5... h6 {[%clk 0:02:56.8]} 6. Bh4 {[%clk 0:02:48.2]} 6... g5 {[%clk 0:02:56.4]}
7. Bg3 {[%clk 0:02:47.6]} 7... d6 {[%clk 0:02:56.8]} 8. O-O {[%clk 0:02:46.7]}
8... Nbd7 {[%clk 0:02:55.3]} 9. c4 {[%clk 0:02:45.9]} 9... h5 {[%clk 0:02:54.4]}
10. Nxg5 {[%clk 0:02:43.7]} 10... h4 {[%clk 0:02:54.1]} 11. Bf4 {[%clk 0:02:41]}
11... e5 {[%clk 0:02:54.3]} 12. dxe5 {[%clk 0:02:20.6]} 12... dxe5 {[%clk
0:02:54.3]} 13. Ne6 {[%clk 0:02:12.6]} 13... fxe6 {[%clk 0:02:53.5]} 14. Bg6+
{[%clk 0:02:12.6]} 14... Ke7 {[%clk 0:02:53.9]} 15. Bg5 {[%clk 0:02:11]} 15...
Rg8 {[%clk 0:02:53.7]} 16. Qh5 {[%clk 0:02:09.6]} 16... c6 {[%clk 0:02:36.6]}
17. Rd1 {[%clk 0:02:08.5]} 17... Bg7 {[%clk 0:02:33.5]} 18. Qxh4 {[%clk
0:02:03.9]} 18... Rh8 {[%clk 0:02:32.7]} 19. Qg3 {[%clk 0:01:42.4]} 19... Kf8
{[%clk 0:02:32.2]} 20. Nc3 {[%clk 0:01:26.9]} 20... Qc7 {[%clk 0:02:30.4]} 21.
Rxd7 {[%clk 0:01:20.4]} 21... Qxd7 {[%clk 0:02:28.8]} 22. Qxe5 {[%clk 0:01:16]}
22... Qe7 {[%clk 0:02:26.4]} 23. Ne4 {[%clk 0:01:13.3]} 23... Rd8 {[%clk
0:01:58.4]} 24. Nxf6 {[%clk 0:01:05.3]} 24... Qd6 {[%clk 0:01:51.8]} 25. Qxd6+
{[%clk 0:00:30.1]} 25... Rxd6 {[%clk 0:01:51.5]} 26. Ne4 {[%clk 0:00:23.1]}
26... Rd7 {[%clk 0:01:51.3]} 27. Bf4 {[%clk 0:00:18.5]} 27... Bxb2 {[%clk
0:01:50.1]} 28. Rb1 {[%clk 0:00:18]} 28... Kg7 {[%clk 0:01:49.3]} 29. h3 {[%clk
0:00:09.5]} 29... Kxg6 {[%clk 0:01:46.3]} 30. Rxb2 {[%clk 0:00:09.8]} 30... c5
{[%clk 0:01:46.5]} 31. Ng3 {[%clk 0:00:06.8]} 31... Re8 {[%clk 0:01:45.1]} 32.
a4 {[%clk 0:00:03.3]} 32... e5 {[%clk 0:01:45.3]} 0-1